[Event "Balkan Youth Online-ch 2020"]
[Site "Online"]
[Date "2020.10.31"]
[Round "5.67"]
[White "Rasheva, Nora"]
[Black "Criveanu, Maria"]
[Result "1-0"]
[ECO "A01"]
[WhiteElo "1588"]
[BlackElo "1054"]
[Annotator "NA"]
[PlyCount "129"]
[EventDate "2020.10.31"]
[EventType "swiss"]
[SourceTitle "playchess.com"]
[Source "ChessBase"]
[SourceQuality "1"]
[TimeControl "1500+5"]

1. b3 {[%emt 0:00:00]} e5 {[%emt 0:00:02]} 2. Bb2 {[%emt 0:00:00]} Nc6 {[%emt 0:00:02]} 3. e3 {[%emt 0:00:00]} Nf6 {[%emt 0:00:08]} 4. Nf3 {[%emt 0:00:00]} d6 {[%emt 0:00:00]} 5. d4 {[%emt 0:00:00]} e4 {[%emt 0:00:19]} 6. Nfd2 {[%emt 0:00:00]} d5 {[%emt 0:00:05]} 7. c4 {[%emt 0:00:00]} Ne7 {[%emt 0:00:14]} 8. cxd5 {[%emt 0:00:07]} Nexd5 {[%emt 0:00:07]} 9. Nc3 {[%emt 0:00:10]} c6 {[%emt 0:00:46]} 10. Ncxe4 {[%emt 0:00:59]} Nxe4 {[%emt 0:00:37]} 11. Nxe4 {[%emt 0:00:00]} Bf5 {[%emt 0:00:40]} 12. Nd2 {[%emt 0:01:15]} Bb4 {[%emt 0:02:02]} 13. a3 {[%emt 0:00:28]} Bxd2+ {[%emt 0:00:37]} 14. Qxd2 {[%emt 0:00:00]} Qe7 {[%emt 0:00:52]} 15. Be2 {[%emt 0:00:24]} O-O {[%emt 0:00:39]} 16. O-O {[%emt 0:00:09]} Rad8 {[%emt 0:00:55]} 17. Bd3 {[%emt 0:02:01]} Be4 {[%emt 0:00:40]} 18. Rfe1 {[%emt 0:00:52]} Nf6 {[%emt 0:00:48]} 19. f3 {[%emt 0:01:58]} Bxd3 {[%emt 0:01:26]} 20. Qxd3 {[%emt 0:00:00]} Nd5 {[%emt 0:00:25]} 21. e4 {[%emt 0:02:36]} Nf4 {[%emt 0:00:04]} 22. Qd2 {[%emt 0:00:06]} Qg5 {[%emt 0:00:14]} 23. Bc1 {[%emt 0:00:55]} Nh3+ {[%emt 0:01:28]} 24. Kh1 {[%emt 0:04:33]} Qxd2 {[%emt 0:04:50]} 25. Bxd2 {[%emt 0:00:01]} Nf2+ {[%emt 0:00:01]} 26. Kg1 {[%emt 0:00:00]} Nd3 {[%emt 0:00:00]} 27. Red1 {[%emt 0:00:32]} Rxd4 {[%emt 0:00:04]} 28. Be3 {[%emt 0:00:10]} Rd6 {[%emt 0:00:46]} 29. Bc5 {[%emt 0:00:15]} Nxc5 {[%emt 0:01:17]} 30. Rxd6 {[%emt 0:00:00]} Nxb3 {[%emt 0:00:00]} 31. Rad1 {[%emt 0:00:12]} Nc5 {[%emt 0:00:41]} 32. Rd8 {[%emt 0:00:14]} f6 {[%emt 0:00:48]} 33. Kf2 {[%emt 0:00:27]} Kf7 {[%emt 0:00:06]} 34. Ke3 {[%emt 0:00:21]} Rxd8 {[%emt 0:00:14]} 35. Rxd8 {[%emt 0:00:00]} Ke7 {[%emt 0:00:22]} 36. Ra8 {[%emt 0:00:34]} a6 {[%emt 0:00:10]} 37. f4 {[%emt 0:00:40]} h6 {[%emt 0:02:14]} 38. f5 {[%emt 0:01:45]} Nd7 {[%emt 0:01:45]} 39. Ra7 {[%emt 0:00:15]} Nc5 {[%emt 0:00:15]} 40. Kd4 {[%emt 0:00:19]} Kd6 {[%emt 0:00:08]} 41. Ra8 {[%emt 0:00:20]} Nd7 {[%emt 0:01:22]} 42. Rg8 {[%emt 0:01:19]} c5+ {[%emt 0:00:00]} 43. Ke3 {[%emt 0:00:01]} c4 {[%emt 0:00:09]} 44. Kd4 {[%emt 0:00:19]} b5 {[%emt 0:00:00]} 45. Ra8 {[%emt 0:00:16]} Kc6 {[%emt 0:00:09]} 46. Rxa6+ {[%emt 0:00:04]} Nb6 {[%emt 0:00:00]} 47. Ra7 {[%emt 0:00:04]} Nd7 {[%emt 0:00:00]} 48. h3 {[%emt 0:00:10]} h5 {[%emt 0:00:07]} 49. Ra8 {[%emt 0:00:11]} Nb6 {[%emt 0:00:09]} 50. Rg8 {[%emt 0:00:22]} Na4 {[%emt 0:00:00]} 51. Rxg7 {[%emt 0:00:11]} c3 {[%emt 0:00:00]} 52. Kd3 {[%emt 0:00:00]} Kc5 {[%emt 0:00:02]} 53. g4 {[%emt 0:00:36]} b4 {[%emt 0:00:02]} 54. axb4+ {[%emt 0:00:03]} Kxb4 {[%emt 0:00:00]} 55. Rb7+ {[%emt 0:00:00]} Ka3 {[%emt 0:00:09]} 56. Ra7 {[%emt 0:00:00]} Kb3 {[%emt 0:00:00]} 57. Rxa4 {[%emt 0:00:06]} Kxa4 {[%emt 0:00:13]} 58. Kxc3 {[%emt 0:00:00]} hxg4 {[%emt 0:00:01]} 59. hxg4 {[%emt 0:00:00]} Kb5 {[%emt 0:00:00]} 60. Kd4 {[%emt 0:00:00]} Kc6 {[%emt 0:00:00]} 61. e5 {[%emt 0:00:00]} fxe5+ {[%emt 0:00:00]} 62. Kxe5 {[%emt 0:00:00]} Kd7 {[%emt 0:00:00]} 63. Kf6 {[%emt 0:00:00]} Ke8 {[%emt 0:00:00]} 64. Kg7 {[%emt 0:00:00]} Ke7 {[%emt 0:00:00]} 65. f6+ {[%emt 0:00:00]} 1-0

[Event "Balkan Youth Online-ch 2020"]
[Site "Online"]
[Date "2020.10.31"]
[Round "5.68"]
[White "Gkoutzouki, Aikaterini Argyro"]
[Black "Arshinkova, Boryana"]
[Result "1-0"]
[ECO "A81"]
[WhiteElo "1380"]
[BlackElo "1329"]
[Annotator "NA"]
[PlyCount "117"]
[EventDate "2020.10.31"]
[EventType "swiss"]
[SourceTitle "playchess.com"]
[Source "ChessBase"]
[SourceQuality "1"]
[TimeControl "1500+5"]

1. d4 {[%emt 0:00:00]} f5 {[%emt 0:00:00]} 2. Nf3 {[%emt 0:00:00]} Nf6 {[%emt 0:00:00]} 3. g3 {[%emt 0:00:00]} g6 {[%emt 0:00:03]} 4. Bg2 {[%emt 0:00:00]} Bg7 {[%emt 0:00:00]} 5. O-O {[%emt 0:00:00]} O-O {[%emt 0:00:01]} 6. e3 {[%emt 0:00:00]} d6 {[%emt 0:00:03]} 7. b3 {[%emt 0:00:00]} Qe8 {[%emt 0:00:00]} 8. Bb2 {[%emt 0:00:00]} Nbd7 {[%emt 0:00:00]} 9. Nbd2 {[%emt 0:00:00]} e5 {[%emt 0:00:00]} 10. dxe5 {[%emt 0:00:18]} dxe5 {[%emt 0:00:00]} 11. Nc4 {[%emt 0:00:02]} Nh5 {[%emt 0:00:07]} 12. Nfxe5 {[%emt 0:08:49]} Nxe5 {[%emt 0:00:28]} 13. Nxe5 {[%emt 0:00:02]} Kh8 {[%emt 0:01:01]} 14. Nd3 {[%emt 0:00:14]} Bxb2 {[%emt 0:00:16]} 15. Nxb2 {[%emt 0:00:00]} Nf6 {[%emt 0:00:24]} 16. Nc4 {[%emt 0:00:56]} Rb8 {[%emt 0:00:05]} 17. Qd4 {[%emt 0:00:15]} b6 {[%emt 0:01:33]} 18. Rad1 {[%emt 0:00:54]} c5 {[%emt 0:00:14]} 19. Qf4 {[%emt 0:00:42]} Bb7 {[%emt 0:00:34]} 20. Nd6 {[%emt 0:00:26]} Qe7 {[%emt 0:00:32]} 21. Nxb7 {[%emt 0:00:12]} Ne4 {[%emt 0:00:17]} 22. Bxe4 {[%emt 0:04:16]} fxe4 {[%emt 0:00:13]} 23. Qd6 {[%emt 0:00:07]} Rxb7 {[%emt 0:01:08]} 24. Qxe7 {[%emt 0:00:14]} Rxe7 {[%emt 0:00:00]} 25. Rd5 {[%emt 0:00:00]} Rf5 {[%emt 0:00:01]} 26. Rd6 {[%emt 0:01:01]} Kg7 {[%emt 0:00:04]} 27. Rfd1 {[%emt 0:00:02]} Rff7 {[%emt 0:00:19]} 28. Kg2 {[%emt 0:00:41]} Kh6 {[%emt 0:00:02]} 29. h4 {[%emt 0:00:12]} Kh5 {[%emt 0:01:01]} 30. R1d2 {[%emt 0:01:06]} Kh6 {[%emt 0:03:22]} 31. Rd8 {[%emt 0:00:39]} Kg7 {[%emt 0:00:04]} 32. Rd1 {[%emt 0:00:16]} Rf6 {[%emt 0:00:56]} 33. R1d2 {[%emt 0:00:16]} Rf8 {[%emt 0:00:23]} 34. Rxf8 {[%emt 0:01:18]} Kxf8 {[%emt 0:00:00]} 35. f3 {[%emt 0:00:00]} exf3+ {[%emt 0:00:01]} 36. Kxf3 {[%emt 0:00:00]} Kf7 {[%emt 0:00:00]} 37. e4 {[%emt 0:00:00]} h5 {[%emt 0:00:00]} 38. Kf4 {[%emt 0:00:00]} Ke6 {[%emt 0:00:01]} 39. Ke3 {[%emt 0:01:51]} Kf6 {[%emt 0:00:30]} 40. Rd6+ {[%emt 0:00:15]} Kf7 {[%emt 0:00:02]} 41. Kf4 {[%emt 0:00:48]} Kg7 {[%emt 0:00:30]} 42. Rd1 {[%emt 0:00:12]} Kf6 {[%emt 0:00:06]} 43. Rd8 {[%emt 0:00:41]} Re6 {[%emt 0:00:33]} 44. e5+ {[%emt 0:00:28]} Ke7 {[%emt 0:00:18]} 45. Rb8 {[%emt 0:00:05]} a5 {[%emt 0:00:14]} 46. Rb7+ {[%emt 0:00:01]} Kf8 {[%emt 0:00:00]} 47. Ke4 {[%emt 0:00:00]} g5 {[%emt 0:00:37]} 48. hxg5 {[%emt 0:00:02]} Rc6 {[%emt 0:00:02]} 49. Kf5 {[%emt 0:00:06]} Kg8 {[%emt 0:00:00]} 50. e6 {[%emt 0:00:03]} Kf8 {[%emt 0:00:00]} 51. Kf6 {[%emt 0:00:00]} Kg8 {[%emt 0:01:34]} 52. g6 {[%emt 0:00:00]} Rc8 {[%emt 0:00:01]} 53. Rd7 {[%emt 0:00:02]} Rf8+ {[%emt 0:00:06]} 54. Rf7 {[%emt 0:00:06]} Re8 {[%emt 0:00:00]} 55. e7 {[%emt 0:00:29]} Rc8 {[%emt 0:00:40]} 56. Rf8+ {[%emt 0:00:00]} Rxf8+ {[%emt 0:00:00]} 57. exf8=Q+ {[%emt 0:00:00]} Kxf8 {[%emt 0:00:00]} 58. c4 {[%emt 0:00:00]} Kg8 {[%emt 0:00:08]} 59. g7 {[%emt 0:00:00]} 1-0

[Event "Balkan Youth Online-ch 2020"]
[Site "Online"]
[Date "2020.10.31"]
[Round "5.69"]
[White "Omeri, Eklea"]
[Black "Davitkova, Jovana"]
[Result "1/2-1/2"]
[ECO "D02"]
[WhiteElo "1070"]
[BlackElo "1227"]
[Annotator "NA"]
[PlyCount "91"]
[EventDate "2020.10.31"]
[EventType "swiss"]
[SourceTitle "playchess.com"]
[Source "ChessBase"]
[SourceQuality "1"]
[TimeControl "1500+5"]

1. d4 {[%emt 0:00:00]} d5 {[%emt 0:00:01]} 2. Nf3 {[%emt 0:00:00]} e6 {[%emt 0:00:03]} 3. a3 {[%emt 0:00:00]} Nf6 {[%emt 0:00:02]} 4. Bg5 {[%emt 0:00:00]} Be7 {[%emt 0:00:00]} 5. Nc3 {[%emt 0:00:00]} O-O {[%emt 0:00:14]} 6. e3 {[%emt 0:00:00]} b6 {[%emt 0:00:22]} 7. Bd3 {[%emt 0:00:00]} h6 {[%emt 0:00:02]} 8. Bxf6 {[%emt 0:00:00]} Bxf6 {[%emt 0:00:00]} 9. O-O {[%emt 0:00:00]} Bb7 {[%emt 0:00:00]} 10. Ne2 {[%emt 0:00:00]} Nd7 {[%emt 0:00:04]} 11. Ng3 {[%emt 0:00:00]} c5 {[%emt 0:00:11]} 12. c3 {[%emt 0:00:00]} cxd4 {[%emt 0:00:32]} 13. cxd4 {[%emt 0:00:00]} Rc8 {[%emt 0:00:04]} 14. Rc1 {[%emt 0:00:03]} Rxc1 {[%emt 0:00:07]} 15. Qxc1 {[%emt 0:00:00]} Qc8 {[%emt 0:00:02]} 16. b4 {[%emt 0:00:15]} Qxc1 {[%emt 0:00:20]} 17. Rxc1 {[%emt 0:00:00]} Rc8 {[%emt 0:00:01]} 18. Rxc8+ {[%emt 0:00:00]} Bxc8 {[%emt 0:00:00]} 19. Bb5 {[%emt 0:00:00]} Kf8 {[%emt 0:00:19]} 20. Kf1 {[%emt 0:00:02]} a6 {[%emt 0:00:14]} 21. Bd3 {[%emt 0:00:14]} b5 {[%emt 0:00:24]} 22. Bc2 {[%emt 0:00:01]} Nb6 {[%emt 0:00:04]} 23. Nd2 {[%emt 0:00:00]} Nc4 {[%emt 0:00:27]} 24. Nxc4 {[%emt 0:00:08]} bxc4 {[%emt 0:00:04]} 25. f4 {[%emt 0:00:06]} Be7 {[%emt 0:00:21]} 26. Ne2 {[%emt 0:01:23]} a5 {[%emt 0:00:20]} 27. bxa5 {[%emt 0:00:08]} Bxa3 {[%emt 0:00:00]} 28. g4 {[%emt 0:00:25]} Bb4 {[%emt 0:00:09]} 29. h4 {[%emt 0:00:05]} Bxa5 {[%emt 0:00:00]} 30. g5 {[%emt 0:00:00]} Ke7 {[%emt 0:00:23]} 31. Ng3 {[%emt 0:00:13]} f6 {[%emt 0:00:32]} 32. g6 {[%emt 0:01:06]} Kd6 {[%emt 0:01:50]} 33. Ba4 {[%emt 0:00:12]} e5 {[%emt 0:00:14]} 34. f5 {[%emt 0:01:10]} exd4 {[%emt 0:00:33]} 35. exd4 {[%emt 0:00:00]} Bd7 {[%emt 0:00:00]} 36. Bc2 {[%emt 0:00:08]} Ke7 {[%emt 0:00:24]} 37. Nh5 {[%emt 0:00:09]} Kf8 {[%emt 0:00:02]} 38. Nf4 {[%emt 0:00:01]} Bc6 {[%emt 0:00:49]} 39. Ne6+ {[%emt 0:00:01]} Kg8 {[%emt 0:00:00]} 40. Ke2 {[%emt 0:00:23]} Bc3 {[%emt 0:01:23]} 41. h5 {[%emt 0:00:14]} Bb4 {[%emt 0:00:26]} 42. Ke3 {[%emt 0:00:25]} Bb5 {[%emt 0:00:23]} 43. Nc7 {[%emt 0:00:23]} Bc6 {[%emt 0:00:02]} 44. Ne6 {[%emt 0:00:17]} Bb5 {[%emt 0:00:22]} 45. Nc7 {[%emt 0:00:00]} Bc6 {[%emt 0:00:00]} 46. Ne6 {[%emt 0:00:00]} 1/2-1/2

[Event "Balkan Youth Online-ch 2020"]
[Site "Online"]
[Date "2020.10.31"]
[Round "5.72"]
[White "Mihelic, Vesna"]
[Black "Kipik, Feyza"]
[Result "1-0"]
[ECO "B54"]
[WhiteElo "1872"]
[BlackElo "1592"]
[Annotator "NA"]
[PlyCount "95"]
[EventDate "2020.10.31"]
[EventType "swiss"]
[SourceTitle "playchess.com"]
[Source "ChessBase"]
[SourceQuality "1"]
[TimeControl "1500+5"]

1. e4 {[%emt 0:00:00]} c5 {[%emt 0:00:00]} 2. Nf3 {[%emt 0:00:00]} g6 {[%emt 0:00:00]} 3. d4 {[%emt 0:00:00]} cxd4 {[%emt 0:00:00]} 4. Nxd4 {[%emt 0:00:00]} d6 {[%emt 0:00:00]} 5. Bb5+ {[%emt 0:00:00]} Nd7 {[%emt 0:00:17]} 6. O-O {[%emt 0:00:07] B54: Sicilian: 2...d6 3 d4 cxd4 4 Nxd4, Unusual Lines .} Ngf6 {[%emt 0:00:01]} 7. Re1 {[%emt 0:00:06]} Bg7 {[%emt 0:00:02]} 8. c4 {[%emt 0:00:03]} O-O {[%emt 0:00:01]} 9. Bxd7 {[%emt 0:00:13]} Nxd7 {[%emt 0:00:25]} 10. Nc3 {[%emt 0:00:01]} Ne5 {[%emt 0:01:06]} 11. b3 {[%emt 0:00:40] [#]} Bd7 $146 {[%emt 0:00:51]} ({Predecessor:} 11... Nc6 12. Be3 Bd7 13. Qd2 Qa5 14. Rad1 Rfc8 15. Nxc6 Bxc6 16. Bd4 Bxd4 17. Qxd4 {½-½ (17) Pielnik,R-Kleinegger,F (2285) Dortmund 1993}) 12. Bb2 {[%emt 0:00:17]} a6 {[%emt 0:04:53]} 13. h3 {[%emt 0:00:20]} Rb8 {[%emt 0:02:57]} 14. f4 $2 {[%emt 0:03:28]} (14. Qd2 $1 $14 {was the only good move.}) 14... Nxc4 {[%emt 0:05:25]} 15. bxc4 {[%emt 0:00:01]} Qb6 {[%emt 0:00:01]} 16. Nd5 {[%emt 0:00:26]} Qxb2 {[%emt 0:00:03]} 17. Nxe7+ {[%emt 0:00:01]} Kh8 {[%emt 0:00:00]} 18. Nb3 {[%emt 0:01:32]} Qf6 {[%emt 0:01:46]} 19. Nd5 {[%emt 0:00:04]} Qh4 {[%emt 0:00:02]} 20. Rc1 {[%emt 0:00:46]} Qg3 {[%emt 0:00:41]} 21. Re3 {[%emt 0:00:24]} Qh4 {[%emt 0:00:15]} 22. e5 {[%emt 0:01:39]} dxe5 {[%emt 0:00:41]} 23. fxe5 {[%emt 0:00:01]} Bh6 {[%emt 0:00:33]} 24. Qf3 {[%emt 0:02:00] [#]} Bxe3+ {[%emt 0:00:40]} ({Black should try} 24... Bf5 $1 $17 25. Rce1 Bxe3+ 26. Qxe3 Rbc8) 25. Qxe3 {[%emt 0:00:05]} Bf5 {[%emt 0:00:04]} 26. Rf1 {[%emt 0:03:37]} (26. Nd4 $15) 26... Qxc4 {[%emt 0:00:54]} 27. Nf6 {[%emt 0:00:15]} Qh4 {[%emt 0:00:41]} 28. Rf4 {[%emt 0:00:55]} Qh6 {[%emt 0:00:05]} 29. Qg3 $1 {[%emt 0:00:06]} Qg7 {[%emt 0:00:41]} 30. Rh4 {[%emt 0:01:27]} h6 {[%emt 0:00:10]} 31. Nd4 {[%emt 0:01:01]} Bc8 {[%emt 0:01:48]} 32. Qe3 $2 {[%emt 0:01:41]} (32. Qg5 {mates} h5 {[#]} 33. Rxh5+ $1 {[%mdl 512]} gxh5 34. Qxh5+ Qh7 35. Qxh7#) 32... g5 {[%emt 0:01:09]} 33. Rh5 {[%emt 0:00:18]} Qg6 {[%emt 0:01:00]} 34. Nf3 {[%emt 0:03:45]} Kg7 {[%emt 0:00:02]} 35. Nxg5 {[%emt 0:00:17]} Bf5 {[%emt 0:00:10]} 36. Nf3 {[%emt 0:00:12]} Be6 {[%emt 0:00:08]} 37. Nh4 {[%emt 0:00:08]} Qb1+ {[%emt 0:00:00]} 38. Kh2 {[%emt 0:00:00]} Rh8 {[%emt 0:00:01]} 39. Qg3+ {[%emt 0:00:41]} Kf8 {[%emt 0:00:00]} 40. Qf4 {[%emt 0:00:06]} Ke7 {[%emt 0:00:18]} 41. Rxh6 {[%emt 0:00:04]} Rxh6 {[%emt 0:00:01]} 42. Qxh6 {[%emt 0:00:00]} Qc2 {[%emt 0:00:07]} 43. Qf4 {[%emt 0:00:11]} Qc4 {[%emt 0:00:01]} 44. Nf5+ $18 {[%emt 0:00:18]} Kd8 {[%emt 0:00:15]} 45. Qd2+ {[%emt 0:00:02]} Kc8 {[%emt 0:00:16]} 46. Nd6+ {[%emt 0:00:00]} Kc7 {[%emt 0:00:00]} 47. Nxc4 {[%emt 0:00:00]} Bxc4 {[%emt 0:00:00]} 48. Qd6+ {[%emt 0:00:00]} 1-0

[Event "Balkan Youth Online-ch 2020"]
[Site "Online"]
[Date "2020.10.31"]
[Round "5.73"]
[White "Shuqja, Klean"]
[Black "Tsakona, Maria"]
[Result "1-0"]
[ECO "A02"]
[WhiteElo "1838"]
[BlackElo "1596"]
[Annotator "NA"]
[PlyCount "97"]
[EventDate "2020.10.31"]
[EventType "swiss"]
[SourceTitle "playchess.com"]
[Source "ChessBase"]
[SourceQuality "1"]
[TimeControl "1500+5"]

1. b3 {[%emt 0:00:00]} c5 {[%emt 0:00:26]} 2. Bb2 {[%emt 0:00:00]} Nf6 {[%emt 0:00:00]} 3. e3 {[%emt 0:00:01]} e6 {[%emt 0:00:07]} 4. f4 {[%emt 0:00:03]} Nc6 {[%emt 0:00:00]} 5. Nf3 {[%emt 0:00:00]} Be7 {[%emt 0:00:00]} 6. Be2 {[%emt 0:00:36] A02: Bird's Opening.} b6 {[%emt 0:00:11]} 7. O-O {[%emt 0:00:01]} O-O {[%emt 0:00:00]} 8. d3 {[%emt 0:01:53]} Nd5 {[%emt 0:01:20]} 9. Qd2 {[%emt 0:00:33]} Bf6 {[%emt 0:00:27] [#]} 10. Nc3 $146 {[%emt 0:01:36]} ({Predecessor:} 10. c3 Qc7 11. g3 g6 12. e4 Nde7 13. d4 cxd4 14. cxd4 d5 15. e5 Bg7 16. Nc3 {1-0 (49) Afek,Y (2267)-Sparenberg,E (2110) Groningen 2015}) 10... Bb7 {[%emt 0:00:16]} 11. e4 {[%emt 0:03:18]} Nxc3 {[%emt 0:01:09]} 12. Bxc3 {[%emt 0:00:00]} d6 {[%emt 0:01:17]} 13. Rae1 {[%emt 0:03:13]} b5 {[%emt 0:03:48]} 14. a3 {[%emt 0:02:06]} a5 {[%emt 0:01:16]} 15. Kh1 {[%emt 0:02:53]} a4 {[%emt 0:01:10]} 16. Rb1 {[%emt 0:01:30]} (16. Bxf6 $15 Qxf6 17. Rb1) 16... Bxc3 {[%emt 0:04:11]} 17. Qxc3 {[%emt 0:00:00]} b4 {[%emt 0:00:07]} 18. axb4 {[%emt 0:02:32]} cxb4 {[%emt 0:00:00]} 19. Qd2 {[%emt 0:00:35]} a3 {[%emt 0:00:00]} 20. Ra1 {[%emt 0:00:23]} Qb6 {[%emt 0:00:52]} 21. d4 {[%emt 0:01:22]} Rac8 {[%emt 0:03:22]} 22. Rfc1 {[%emt 0:01:12]} Na7 {[%emt 0:00:57]} 23. Bd3 {[%emt 0:00:37]} Rc3 {[%emt 0:00:47]} 24. Ng1 {[%emt 0:00:34]} f5 {[%emt 0:03:48]} 25. exf5 {[%emt 0:00:51]} exf5 {[%emt 0:00:43]} 26. Bc4+ {[%emt 0:00:26]} Kh8 {[%emt 0:00:00]} 27. Ne2 {[%emt 0:00:13]} Rh3 {[%emt 0:00:00]} 28. Kg1 {[%emt 0:00:30]} Rh4 {[%emt 0:00:27]} 29. c3 {[%emt 0:00:11]} Qc6 {[%emt 0:00:26]} 30. Ng3 {[%emt 0:00:06]} Rxf4 {[%emt 0:00:05]} 31. d5 {[%emt 0:00:01]} Qb6+ {[%emt 0:00:02]} 32. Kh1 {[%emt 0:00:00]} Rf2 {[%emt 0:00:00]} 33. Qd3 {[%emt 0:00:06]} bxc3 {[%emt 0:00:15]} 34. Rxa3 {[%emt 0:00:13]} f4 {[%emt 0:00:02]} 35. Ne4 {[%emt 0:00:03]} Rb2 {[%emt 0:00:10]} 36. Ng5 {[%emt 0:00:02]} g6 {[%emt 0:00:03]} 37. Qxc3+ {[%emt 0:00:00]} Kg8 {[%emt 0:00:00]} 38. Qxb2 {[%emt 0:00:00]} h6 {[%emt 0:00:09]} 39. Ne6 {[%emt 0:00:00]} Rf7 {[%emt 0:00:03]} 40. Qd4 {[%emt 0:00:00]} Qb4 {[%emt 0:00:06]} 41. Raa1 {[%emt 0:00:06]} f3 $18 {[%emt 0:00:00]} 42. gxf3 {[%emt 0:00:03]} Nb5 {[%emt 0:00:07]} 43. Bxb5 {[%emt 0:00:02]} Qxb5 {[%emt 0:00:00]} 44. Rc3 {[%emt 0:00:15]} Qe8 {[%emt 0:00:19]} 45. Rac1 {[%emt 0:00:05]} Qd7 {[%emt 0:00:07]} 46. Rc7 {[%emt 0:00:03]} Qe8 {[%emt 0:00:02]} 47. Kg2 {[%emt 0:00:08]} g5 {[%emt 0:00:06]} 48. Rxf7 {[%emt 0:00:01]} Qxf7 {[%emt 0:00:00]} 49. Rc7 {[%emt 0:00:00]} 1-0

[Event "Balkan Youth Online-ch 2020"]
[Site "Online"]
[Date "2020.10.31"]
[Round "5.74"]
[White "Ciftci, Zeynep"]
[Black "Jovanovic, Anja"]
[Result "1-0"]
[ECO "E01"]
[WhiteElo "1603"]
[BlackElo "1778"]
[Annotator "NA"]
[PlyCount "69"]
[EventDate "2020.10.31"]
[EventType "swiss"]
[SourceTitle "playchess.com"]
[Source "ChessBase"]
[SourceQuality "1"]
[TimeControl "1500+5"]

1. Nf3 {[%emt 0:00:00]} Nf6 {[%emt 0:00:02]} 2. c4 {[%emt 0:00:00]} e6 {[%emt 0:00:22]} 3. g3 {[%emt 0:00:00]} d5 {[%emt 0:00:00]} 4. Bg2 {[%emt 0:00:00]} c6 {[%emt 0:00:00]} 5. d4 {[%emt 0:00:00]} Nbd7 {[%emt 0:00:44]} 6. O-O {[%emt 0:00:00]} Bd6 {[%emt 0:00:05]} 7. b3 {[%emt 0:00:00]} O-O {[%emt 0:00:03]} 8. Bb2 {[%emt 0:00:00]} Re8 {[%emt 0:00:10]} 9. Nbd2 {[%emt 0:00:00]} Bc7 {[%emt 0:01:25]} 10. Qc2 {[%emt 0:00:15]} h6 {[%emt 0:00:21]} 11. h3 {[%emt 0:01:33]} Nf8 {[%emt 0:03:08]} 12. e4 {[%emt 0:01:46]} dxe4 {[%emt 0:00:49]} 13. Nxe4 {[%emt 0:00:00]} N8h7 {[%emt 0:00:54]} 14. Nxf6+ {[%emt 0:03:10]} Nxf6 {[%emt 0:00:00]} 15. Rad1 {[%emt 0:00:00]} Bb6 {[%emt 0:01:49]} 16. a3 {[%emt 0:03:36]} a6 {[%emt 0:01:10]} 17. Rfe1 {[%emt 0:02:02]} Bd7 {[%emt 0:02:33]} 18. Ne5 {[%emt 0:03:24]} Rc8 {[%emt 0:01:21]} 19. b4 {[%emt 0:00:10]} Ba7 {[%emt 0:01:10]} 20. Qb3 {[%emt 0:00:11]} Re7 {[%emt 0:02:49]} 21. d5 {[%emt 0:05:24]} cxd5 {[%emt 0:00:21]} 22. cxd5 {[%emt 0:00:05]} exd5 {[%emt 0:00:46]} 23. Bxd5 {[%emt 0:00:06]} Qf8 {[%emt 0:01:58]} 24. Ng6 {[%emt 0:03:03]} Rxe1+ {[%emt 0:01:00]} 25. Rxe1 {[%emt 0:00:00]} Qd6 {[%emt 0:00:13]} 26. Ne7+ {[%emt 0:00:08]} Kh8 {[%emt 0:00:08]} 27. Nxc8 {[%emt 0:00:12]} Bxc8 {[%emt 0:01:00]} 28. Bxf6 {[%emt 0:00:04]} Qxf6 {[%emt 0:00:17]} 29. Re8+ {[%emt 0:01:09]} Kh7 {[%emt 0:00:00]} 30. Qf3 {[%emt 0:00:03]} Qg6 {[%emt 0:01:59]} 31. Rxc8 {[%emt 0:00:43]} f5 {[%emt 0:00:21]} 32. Bxb7 {[%emt 0:00:02]} Qf7 {[%emt 0:00:08]} 33. Bd5 {[%emt 0:00:03]} Qg6 {[%emt 0:00:00]} 34. Rf8 {[%emt 0:00:06]} Bd4 {[%emt 0:00:08]} 35. Bg8+ {[%emt 0:00:00]} 1-0

[Event "Balkan Youth Online-ch 2020"]
[Site "Online"]
[Date "2020.10.31"]
[Round "5.76"]
[White "Zrmanovska, Mihaela"]
[Black "Puia, Alexia-Teodora"]
[Result "0-1"]
[ECO "B49"]
[WhiteElo "1300"]
[BlackElo "1697"]
[Annotator "NA"]
[PlyCount "50"]
[EventDate "2020.10.31"]
[EventType "swiss"]
[SourceTitle "playchess.com"]
[Source "ChessBase"]
[SourceQuality "1"]
[TimeControl "1500+5"]

1. e4 {[%emt 0:00:00]} c5 {[%emt 0:00:00]} 2. Nf3 {[%emt 0:00:00]} e6 {[%emt 0:00:00]} 3. d4 {[%emt 0:00:00]} cxd4 {[%emt 0:00:00]} 4. Nxd4 {[%emt 0:00:00]} Nc6 {[%emt 0:00:00]} 5. Nc3 {[%emt 0:00:58]} a6 {[%emt 0:00:00]} 6. Be2 {[%emt 0:00:55]} Qc7 {[%emt 0:00:00]} 7. O-O {[%emt 0:00:36]} Nf6 {[%emt 0:00:00]} 8. Be3 {[%emt 0:00:16]} Bb4 {[%emt 0:00:00]} 9. Bd3 {[%emt 0:02:07]} h5 {[%emt 0:01:47]} 10. f4 {[%emt 0:01:33]} Ng4 {[%emt 0:00:04]} 11. Qf3 {[%emt 0:01:33]} Nxe3 {[%emt 0:00:02]} 12. Qxe3 {[%emt 0:00:00]} Nxd4 {[%emt 0:00:00]} 13. Qxd4 {[%emt 0:00:00]} Bc5 {[%emt 0:00:00]} 14. Qxc5 {[%emt 0:00:24]} Qxc5+ {[%emt 0:00:00]} 15. Kh1 {[%emt 0:00:00]} b5 {[%emt 0:00:16]} 16. f5 {[%emt 0:00:18]} Bb7 {[%emt 0:00:11]} 17. Rad1 {[%emt 0:00:54]} O-O-O {[%emt 0:00:15]} 18. Ne2 {[%emt 0:00:25]} g6 {[%emt 0:01:29]} 19. c4 {[%emt 0:00:59]} b4 {[%emt 0:00:40]} 20. fxe6 {[%emt 0:00:57]} dxe6 {[%emt 0:00:10]} 21. Rxf7 {[%emt 0:00:07]} Bxe4 {[%emt 0:00:03]} 22. Nc1 {[%emt 0:00:36]} Qg5 {[%emt 0:00:18]} 23. Rf2 {[%emt 0:00:09]} Bxd3 {[%emt 0:00:00]} 24. Nxd3 {[%emt 0:00:00]} Rxd3 {[%emt 0:00:00]} 25. Re1 {[%emt 0:00:16]} Rhd8 {[%emt 0:00:00]} 0-1